fUSD/lending_fUSD_20241020
["ID","MTS","AMOUNT","RATE_DAILY","PERIOD"]
[340532870,1729420247940,-500.0,0.00013699,2]
[340532871,1729420247949,-207.98004958,0.00013699,2]
[340532872,1729420247959,-200.0,0.00013699,2]
[340532873,1729420247968,-500.0,0.00013699,2]
[340532874,1729420247978,-929.93,0.000137,2]
[340532875,1729420247987,-207574.892705,0.000138,2]
[340532876,1729420247997,-17793.4870593,0.000139,2]
[340532877,1729420248006,-350.0,0.00014,2]
[340532878,1729420248016,-194.75,0.00014112,2]
[340532879,1729420248025,-378.75,0.00014209,2]
[340532880,1729420248035,-873.84302182,0.00014346,2]
[340532881,1729420248045,-1094.52299149,0.0001439,2]
[340532882,1729420248055,-7819.18845921,0.000145,2]
[340532883,1729420248065,-16060.87438695,0.000145,2]
[340532884,1729420248075,-2430.0,0.000145,2]
[340532885,1729420248085,-167.0,0.00014545,2]
[340532886,1729420248095,-167.0,0.00014565,2]
[340532887,1729420248105,-1000.0,0.000148,2]
[340532888,1729420248116,-432.0,0.00014986,2]
[340532889,1729420248126,-292924.66567814,0.00015,2]
[340532890,1729420248136,-300.0,0.00015068,2]
[340532891,1729420248145,-15819.92750333,0.000154,2]
[340532892,1729420248156,-554.0,0.00015567,2]
[340532893,1729420248166,-194.75,0.0001568,2]
[340532894,1729420248175,-929.93,0.000157,2]
[340532895,1729420248185,-3870.1970081,0.000159,2]
[340532896,1729420248195,-400.0,0.00016,2]
[340532897,1729420248205,-1000.0,0.0001628,2]
[340532898,1729420248215,-300.0,0.00016438,2]
[340532899,1729420248226,-153.09,0.00016438,2]
[340532900,1729420248236,-378.75,0.00016473,2]
[340532901,1729420248246,-194.75,0.00017248,2]
[340532902,1729420248255,-1000.0,0.0001776,2]
[340532903,1729420248265,-20101.97521487,0.00018,2]
[340532904,1729420248275,-450.0,0.00018,2]
[340532905,1729420248285,-4972.7946539,0.000186,14]
[340532906,1729420248294,-378.75,0.00018737,2]
[340532907,1729420248305,-194.75,0.00018816,2]
[340532908,1729420248315,-756.17,0.00019305,2]
[340532909,1729420248325,-4644.88673659,0.000199,3]
[340532910,1729420248334,-198804.54067267,0.0002,2]
[340532911,1729420248344,-621.35381856,0.0002,5]
[340532912,1729420248354,-24793.69193307,0.0002,2]
[340532913,1729420248363,-500.0,0.0002,2]
[340532914,1729420248373,-150.0,0.0002,2]
[340532915,1729420248382,-929.93,0.0002,2]
[340532916,1729420248392,-5722.42800311,0.0002,2]
[340532917,1729420248401,-150.0,0.00020082,2]
[340532918,1729420248411,-200.0,0.00021,2]
[340532919,1729420248421,-378.75,0.00021001,2]
[340532920,1729420248431,-375.0,0.00021917,2]
[340532921,1729420248441,-2500.0,0.00021917,2]
[340532922,1729420248450,-1226.33324839,0.00021917,2]
[340532923,1729420248460,-200.0,0.00022,2]
[340532924,1729420248470,-499474.88302802,0.00022,2]
[340532925,1729420248480,-550.0,0.00022,2]
[340532926,1729420248489,-151.0,0.00022,7]
[340532927,1729420248499,-151.0,0.00022,7]
[340532928,1729420248508,-151.0,0.00022,7]
[340532929,1729420248518,-809.0,0.00022019,2]
[340532930,1729420248528,-561.541,0.00022019,2]
[340532931,1729420248537,-678.107,0.00022019,2]
[340532932,1729420248547,-450.418,0.00022019,2]
[340532933,1729420248556,-812.0,0.00022019,2]
[340532934,1729420248565,-150.803,0.00022019,2]
[340532935,1729420248575,-3884.069,0.00022019,2]
[340532936,1729420248585,-556.609,0.00022019,2]
[340532937,1729420248597,-1084.0,0.00022019,2]
[340532938,1729420248607,-2665.08199761,0.000222,2]
[340532939,1729420248617,-33671.0982776,0.000225,2]
[340532940,1729420248628,-11518.0,0.000225,5]
[340532941,1729420248638,-150.0,0.00022548,2]
[340532942,1729420248648,-150.0,0.00022548,2]
[340532943,1729420248658,-150.0,0.00022548,2]
[340532944,1729420248667,-201.45,0.00023,2]
[340532945,1729420248677,-2193.17469705,0.00023,2]
[340532946,1729420248686,-49508.83125943,0.000232,2]
[340532947,1729420248696,-2768.0,0.000232,2]
[340532948,1729420248705,-378.75,0.00023264,2]
[340532949,1729420248715,-681.0,0.000233,2]
[340532950,1729420248724,-150.203,0.00023412,2]
[340532951,1729420248734,-150.0,0.00023412,2]
[340532952,1729420248743,-929.93,0.000235,14]
[340532953,1729420248752,-90561.0,0.000236,2]
[340532954,1729420248761,-167.68,0.00023627,2]
[340532955,1729420248771,-1776049.13983931,0.0002388,2]
[340532956,1729420248780,-335304.0,0.00023922,2]
[340532957,1729420248790,-151.0,0.00023922,7]
[340532958,1729420248801,-151.0,0.00023922,7]
[340532959,1729420248811,-151.0,0.00023922,7]
[340532960,1729420248821,-76516.56275288,0.00024,2]
[340532961,1729420248830,-2372.41593424,0.00024,2]
[340532962,1729420248840,-200.0,0.00024,2]
[340532963,1729420248850,-3507.1818381,0.0002421,2]
[340532964,1729420248860,-318.68,0.00024235,7]
[340532965,1729420248869,-5000.0,0.000245,2]
[340532966,1729420248879,-5000.0,0.000245,3]
[340532967,1729420248888,-5000.0,0.000245,4]
[340532968,1729420248897,-5000.0,0.000245,5]
[340532969,1729420248907,-3392.32421745,0.000245,2]
[340532970,1729420248917,-2647.881398,0.00024597,4]
[340532971,1729420248926,-343.404441,0.00024597,7]
[340532972,1729420248936,-343.404441,0.00024597,7]
[340532973,1729420248945,-4694.21,0.000246,5]
[340532974,1729420248955,-750.0,0.00024657,2]
[340532975,1729420248973,-153.09,0.00024658,2]
[340532976,1729420248982,-500.0,0.00024658,7]
[340532977,1729420248991,-246.45,0.00024658,4]
[340532978,1729420249000,-1083.33327018,0.0002475,2]
[340532979,1729420249010,-150.0,0.0002478,2]
[340532980,1729420249020,-154.77468599,0.0002478,2]
[340532981,1729420249030,-361.96344032,0.000248,5]
[340532982,1729420249039,-150.0,0.00024876,2]
[340532983,1729420249051,-154.95,0.00024877,30]
[340532984,1729420249062,-15216.08343405,0.000249,2]
[340532985,1729420249071,-1205.86258272,0.000249,2]
[340532986,1729420249081,-2000.0,0.000249,2]
[340532987,1729420249090,-2000.0,0.000249,2]
[340532988,1729420249100,-2000.0,0.000249,2]
[340532989,1729420249109,-2000.0,0.000249,2]
[340532990,1729420249119,-2000.0,0.000249,2]
[340532991,1729420249128,-2000.0,0.000249,2]
[340532992,1729420249138,-2000.0,0.000249,2]
[340532993,1729420249147,-212.72831031,0.000249,2]
[340532994,1729420249156,-2000.0,0.000249,2]
[340532995,1729420249165,-175.42510607,0.000249,2]
[340532996,1729420249175,-1379.65509,0.000249,2]
[340532997,1729420249184,-167.68,0.00024927,2]
[340532998,1729420249193,-600.0,0.00024931,9]
[340532999,1729420249203,-600.0,0.00024931,9]
[340533000,1729420249212,-600.0,0.00024931,9]
[340533001,1729420249221,-600.0,0.00024931,9]
[340533002,1729420249231,-600.0,0.00024931,9]
[340533003,1729420249241,-600.0,0.00024931,9]
[340533004,1729420249250,-600.0,0.00024931,9]
[340533005,1729420249260,-600.0,0.00024931,9]
[340533006,1729420249269,-600.0,0.00024931,9]
[340533007,1729420249278,-600.0,0.00024931,9]
[340533008,1729420249287,-500.0,0.00024931,2]
[340533009,1729420249297,-500.0,0.00024931,2]
[340533010,1729420249306,-150.8324182,0.00024931,2]
[340533011,1729420249315,-500.0,0.00024931,2]
[340533012,1729420249325,-500.0,0.00024931,2]
[340533013,1729420249335,-500.0,0.00024931,2]
[340533014,1729420249344,-500.0,0.00024931,2]
[340533015,1729420249354,-500.0,0.00024931,2]
[340533016,1729420249364,-500.0,0.00024931,2]
[340533017,1729420249373,-500.0,0.00024931,2]
[340533018,1729420249383,-500.0,0.00024931,2]
[340533019,1729420249392,-500.0,0.00024931,2]
[340533020,1729420249401,-538.22741549,0.00024931,2]
[340533021,1729420249410,-500.0,0.00024931,2]
[340533022,1729420249419,-571.28036931,0.00024931,2]
[340533023,1729420249428,-500.0,0.00024931,2]
[340533024,1729420249437,-519.24766977,0.00024931,2]
[340533025,1729420249446,-500.0,0.00024931,2]
[340533026,1729420249456,-545.11703867,0.00024931,2]
[340533027,1729420249465,-500.0,0.00024931,2]
[340533028,1729420249475,-517.16106839,0.00024931,2]
[340533029,1729420249484,-500.0,0.00024931,2]
[340533030,1729420249493,-500.0,0.00024931,2]
[340533031,1729420249503,-276.38050649,0.00024931,2]
[340533032,1729420249516,-500.0,0.00024931,2]
[340533033,1729420249526,-500.0,0.00024931,2]
[340533034,1729420249535,-500.0,0.00024931,2]
[340533035,1729420249545,-500.0,0.00024931,2]
[340533036,1729420249555,-500.0,0.00024931,2]
[340533037,1729420249564,-500.0,0.00024931,2]
[340533038,1729420249574,-500.0,0.00024931,2]
[340533039,1729420249583,-531.71506038,0.00024931,2]
[340533040,1729420249596,-500.0,0.00024931,2]
[340533041,1729420249606,-500.0,0.00024931,2]
[340533042,1729420249615,-340.76542565,0.00024931,2]
[340533043,1729420249625,-525.0590977,0.00024931,2]
[340533044,1729420249635,-500.0,0.00024931,2]
[340533045,1729420249644,-500.0,0.00024931,2]
[340533046,1729420249654,-171.57559438,0.00024931,2]
[340533047,1729420249663,-500.0,0.00024931,2]
[340533048,1729420249673,-500.0,0.00024931,2]
[340533049,1729420249682,-500.0,0.00024931,2]
[340533050,1729420249692,-500.0,0.00024931,2]
[340533051,1729420249701,-225.14631218,0.00024931,2]
[340533052,1729420249711,-500.0,0.00024931,2]
[340533053,1729420249720,-500.0,0.00024931,2]
[340533054,1729420249730,-500.0,0.00024931,2]
[340533055,1729420249739,-500.0,0.00024931,2]
[340533056,1729420249748,-516.10293292,0.00024931,2]
[340533057,1729420249758,-500.0,0.00024931,2]
[340533058,1729420249767,-500.0,0.00024931,2]
[340533059,1729420249777,-500.0,0.00024931,2]
[340533060,1729420249787,-500.0,0.00024931,2]
[340533061,1729420249797,-500.0,0.00024931,2]
[340533062,1729420249807,-500.0,0.00024931,2]
[340533063,1729420249816,-500.0,0.00024931,2]
[340533064,1729420249826,-500.0,0.00024931,2]
[340533065,1729420249835,-500.0,0.00024931,2]
[340533066,1729420249844,-500.0,0.00024931,2]
[340533067,1729420249854,-500.0,0.00024931,2]
[340533068,1729420249863,-625.01397556,0.00024931,2]
[340533069,1729420249873,-339.93186892,0.00024931,2]
[340533070,1729420249883,-500.0,0.00024931,2]
[340533071,1729420249892,-500.0,0.00024931,2]
[340533072,1729420249901,-500.0,0.00024931,2]
[340533073,1729420249911,-500.0,0.00024931,2]
[340533074,1729420249920,-500.0,0.00024931,2]
[340533075,1729420249930,-500.0,0.00024931,2]
[340533076,1729420249939,-500.0,0.00024931,2]
[340533077,1729420249948,-500.0,0.00024931,2]
[340533078,1729420249957,-500.0,0.00024931,2]
[340533079,1729420249967,-500.0,0.00024931,2]
[340533080,1729420249976,-500.0,0.00024931,2]
[340533081,1729420249985,-500.0,0.00024931,2]
[340533082,1729420249994,-542.07508572,0.00024931,2]
[340533083,1729420250003,-533.75955203,0.00024931,2]
[340533084,1729420250013,-500.0,0.00024931,2]
[340533085,1729420250023,-500.0,0.00024931,2]
[340533086,1729420250035,-500.0,0.00024931,2]
[340533087,1729420250046,-500.0,0.00024931,2]
[340533088,1729420250058,-500.0,0.00024931,2]
[340533089,1729420250067,-500.0,0.00024931,2]
[340533090,1729420250076,-500.0,0.00024931,2]
[340533091,1729420250085,-154.14126667,0.00024931,2]
[340533092,1729420250094,-500.0,0.00024931,2]
[340533093,1729420250104,-500.0,0.00024931,2]
[340533094,1729420250115,-500.0,0.00024931,2]
[340533095,1729420250125,-500.0,0.00024931,2]
[340533096,1729420250135,-500.0,0.00024931,2]
[340533097,1729420250145,-500.0,0.00024931,2]
[340533098,1729420250154,-379.49685617,0.00024931,2]
[340533099,1729420250164,-397.07989975,0.00024931,2]
[340533100,1729420250174,-500.0,0.00024931,2]
[340533101,1729420250186,-500.0,0.00024931,2]
[340533102,1729420250197,-519.63358974,0.00024931,2]
[340533103,1729420250206,-500.0,0.00024931,2]
[340533104,1729420250218,-500.0,0.00024931,2]
[340533105,1729420250228,-500.0,0.00024931,2]
[340533106,1729420250239,-500.0,0.00024931,2]
[340533107,1729420250249,-500.0,0.00024931,2]
[340533108,1729420250258,-500.0,0.00024931,2]
[340533109,1729420250267,-500.0,0.00024931,2]
[340533110,1729420250277,-500.0,0.00024931,2]
[340533111,1729420250287,-500.0,0.00024931,2]
[340533112,1729420250296,-550.37631306,0.00024931,2]
[340533113,1729420250305,-500.0,0.00024931,2]
[340533114,1729420250314,-676.15,0.00024931,2]
[340533115,1729420250324,-500.0,0.00024931,2]
[340533116,1729420250333,-500.0,0.00024931,2]
[340533117,1729420250342,-500.0,0.00024931,2]
[340533118,1729420250352,-500.0,0.00024931,2]
[340533119,1729420250362,-500.0,0.00024931,2]
[340533120,1729420250372,-500.0,0.00024931,2]
[340533121,1729420250382,-500.0,0.00024931,2]
[340533122,1729420250391,-500.0,0.00024931,2]
[340533123,1729420250401,-500.0,0.00024931,2]
[340533124,1729420250411,-500.0,0.00024931,2]
[340533125,1729420250421,-500.0,0.00024931,2]
[340533126,1729420250431,-588.2863439,0.00024931,2]
[340533127,1729420250440,-500.0,0.00024931,2]
[340533128,1729420250449,-500.0,0.00024931,2]
[340533129,1729420250459,-500.0,0.00024931,2]
[340533130,1729420250688,-500.0,0.00024931,2]
[340533131,1729420250698,-500.0,0.00024931,2]
[340533132,1729420250708,-500.0,0.00024931,2]
[340533133,1729420250717,-500.0,0.00024931,2]
[340533134,1729420250727,-500.0,0.00024931,2]
[340533135,1729420250737,-516.93860806,0.00024931,2]
[340533136,1729420250746,-500.0,0.00024931,2]
[340533137,1729420250756,-676.15,0.00024931,2]
[340533138,1729420250766,-340.20543493,0.00024931,2]
[340533139,1729420250775,-676.15,0.00024931,2]
[340533140,1729420250785,-500.0,0.00024931,2]
[340533141,1729420250796,-676.15,0.00024931,2]
[340533142,1729420250806,-500.0,0.00024931,2]
[340533143,1729420250816,-500.0,0.00024931,2]
[340533144,1729420250825,-676.15,0.00024931,2]
[340533145,1729420250835,-500.0,0.00024931,2]
[340533146,1729420250845,-676.15,0.00024931,2]
[340533147,1729420250854,-676.15,0.00024931,2]
[340533148,1729420250864,-676.15,0.00024931,2]
[340533149,1729420250874,-676.15,0.00024931,2]
[340533150,1729420250884,-676.15,0.00024931,2]
[340533151,1729420250893,-676.15,0.00024931,2]
[340533152,1729420250903,-676.15,0.00024931,2]
[340533153,1729420250913,-500.0,0.00024931,2]
[340533154,1729420250923,-676.15,0.00024931,2]
[340533155,1729420250932,-676.15,0.00024931,2]
[340533156,1729420250941,-676.15,0.00024931,2]
[340533157,1729420250951,-676.15,0.00024931,2]
[340533158,1729420250960,-676.15,0.00024931,2]
[340533159,1729420250970,-676.15,0.00024931,2]
[340533160,1729420250979,-676.15,0.00024931,2]
[340533161,1729420250988,-676.15,0.00024931,2]
[340533162,1729420250998,-676.15,0.00024931,2]
[340533163,1729420251007,-676.15,0.00024931,2]
[340533164,1729420251017,-893.86,0.00024931,2]
[340533165,1729420251027,-676.15,0.00024931,2]
[340533166,1729420251036,-893.86,0.00024931,2]
[340533167,1729420251046,-893.86,0.00024931,2]
[340533168,1729420251055,-676.35136335,0.00024931,2]
[340533169,1729420251065,-893.86,0.00024931,2]
[340533170,1729420251074,-893.86,0.00024931,2]
[340533171,1729420251084,-893.86,0.00024931,2]
[340533172,1729420251093,-893.86,0.00024931,2]
[340533173,1729420251103,-893.86,0.00024931,2]
[340533174,1729420251113,-893.86,0.00024931,2]
[340533175,1729420251122,-893.86,0.00024931,2]
[340533176,1729420251131,-893.86,0.00024931,2]
[340533177,1729420251141,-893.86,0.00024931,2]
[340533178,1729420251150,-893.86,0.00024931,2]
[340533179,1729420251160,-893.86,0.00024931,2]
[340533180,1729420251169,-893.86,0.00024931,2]
[340533181,1729420251178,-893.86,0.00024931,2]
[340533182,1729420251188,-893.86,0.00024931,2]
[340533183,1729420251197,-500.0,0.00024931,2]
[340533184,1729420251206,-893.86,0.00024931,2]
[340533185,1729420251216,-513.80824794,0.00024931,2]
[340533186,1729420251225,-893.86,0.00024931,2]
[340533187,1729420251235,-893.86,0.00024931,2]
[340533188,1729420251245,-893.86,0.00024931,2]
[340533189,1729420251254,-893.86,0.00024931,2]
[340533190,1729420251263,-893.86,0.00024931,2]
[340533191,1729420251272,-893.98889848,0.00024931,2]
[340533192,1729420251281,-500.0,0.00024931,2]
[340533193,1729420251290,-500.0,0.00024931,2]
[340533194,1729420251299,-500.0,0.00024931,2]
[340533195,1729420251309,-500.0,0.00024931,2]
[340533196,1729420251319,-500.0,0.00024931,2]
[340533197,1729420251329,-507.74,0.00024931,2]
[340533198,1729420251338,-500.0,0.00024931,2]
[340533199,1729420251348,-500.0,0.00024931,2]
[340533200,1729420251357,-507.74,0.00024931,2]
[340533201,1729420251367,-554.84549417,0.00024931,2]
[340533202,1729420251376,-500.0,0.00024931,2]
[340533203,1729420251386,-507.74,0.00024931,2]
[340533204,1729420251395,-500.0,0.00024931,2]
[340533205,1729420251404,-507.74,0.00024931,2]
[340533206,1729420251414,-500.0,0.00024931,2]
[340533207,1729420251423,-507.74,0.00024931,2]
[340533208,1729420251432,-500.0,0.00024931,2]
[340533209,1729420251441,-507.74,0.00024931,2]
[340533210,1729420251451,-273.65970708,0.00024931,2]
[340533211,1729420251460,-507.74,0.00024931,2]
[340533212,1729420251469,-507.74,0.00024931,2]
[340533213,1729420251479,-507.74,0.00024931,2]
[340533214,1729420251488,-507.74,0.00024931,2]
[340533215,1729420251498,-507.74,0.00024931,2]
[340533216,1729420251507,-507.74,0.00024931,2]
[340533217,1729420251516,-507.74,0.00024931,2]
[340533218,1729420251526,-1084.61,0.00024931,2]
[340533219,1729420251535,-507.74,0.00024931,2]
[340533220,1729420251544,-500.0,0.00024931,2]
[340533221,1729420251554,-1084.61,0.00024931,2]
[340533222,1729420251563,-507.74,0.00024931,2]
[340533223,1729420251576,-543.39301689,0.00024931,2]
[340533224,1729420251587,-1084.61,0.00024931,2]
[340533225,1729420251600,-507.74,0.00024931,2]
[340533226,1729420251610,-1084.61,0.00024931,2]
[340533227,1729420251620,-507.74,0.00024931,2]
[340533228,1729420251629,-1084.61,0.00024931,2]
[340533229,1729420251639,-507.74,0.00024931,2]
[340533230,1729420251648,-1084.61,0.00024931,2]
[340533231,1729420251658,-507.74,0.00024931,2]
[340533232,1729420251667,-1084.61,0.00024931,2]
[340533233,1729420251677,-507.74,0.00024931,2]
[340533234,1729420251688,-1084.61,0.00024931,2]
[340533235,1729420251698,-507.74,0.00024931,2]
[340533236,1729420251708,-1084.61,0.00024931,2]
[340533237,1729420251718,-507.74,0.00024931,2]
[340533238,1729420251727,-1084.61,0.00024931,2]
[340533239,1729420251737,-1084.61,0.00024931,2]
[340533240,1729420251747,-507.74,0.00024931,2]
[340533241,1729420251756,-779.03,0.00024931,2]
[340533242,1729420251766,-1084.61,0.00024931,2]
[340533243,1729420251776,-507.9219678,0.00024931,2]
[340533244,1729420251786,-779.03,0.00024931,2]
[340533245,1729420251797,-500.0,0.00024931,2]
[340533246,1729420251807,-1084.61,0.00024931,2]
[340533247,1729420251816,-779.03,0.00024931,2]
[340533248,1729420251826,-1084.61,0.00024931,2]
[340533249,1729420251836,-779.03,0.00024931,2]
[340533250,1729420251846,-1084.61,0.00024931,2]
[340533251,1729420251856,-500.0,0.00024931,2]
[340533252,1729420251865,-1084.61,0.00024931,2]
[340533253,1729420251876,-500.0,0.00024931,2]
[340533254,1729420251886,-779.03,0.00024931,2]
[340533255,1729420251895,-1084.61,0.00024931,2]
[340533256,1729420251905,-500.0,0.00024931,2]
[340533257,1729420251915,-1084.61,0.00024931,2]
[340533258,1729420251924,-519.71189683,0.00024931,2]
[340533259,1729420251934,-1084.61,0.00024931,2]
[340533260,1729420251944,-779.03,0.00024931,2]
[340533261,1729420251954,-1084.61,0.00024931,2]
[340533262,1729420251964,-779.03,0.00024931,2]
[340533263,1729420251974,-523.00927599,0.00024931,2]
[340533264,1729420251984,-1084.61,0.00024931,2]
[340533265,1729420251994,-779.03,0.00024931,2]
[340533266,1729420252003,-1084.61,0.00024931,2]
[340533267,1729420252013,-779.03,0.00024931,2]
[340533268,1729420252023,-1084.61,0.00024931,2]
[340533269,1729420252033,-779.03,0.00024931,2]
[340533270,1729420252043,-1084.64862165,0.00024931,2]
[340533271,1729420252053,-779.03,0.00024931,2]
[340533272,1729420252062,-779.03,0.00024931,2]
[340533273,1729420252072,-779.03,0.00024931,2]
[340533274,1729420252081,-500.0,0.00024931,2]
[340533275,1729420252091,-779.03,0.00024931,2]
[340533276,1729420252100,-500.0,0.00024931,2]
[340533277,1729420252109,-779.03,0.00024931,2]
[340533278,1729420252119,-492.42769462,0.00024931,2]
[340533279,1729420252128,-779.03,0.00024931,2]
[340533280,1729420252138,-779.03,0.00024931,2]
[340533281,1729420252148,-779.03,0.00024931,2]
[340533282,1729420252158,-779.03,0.00024931,2]
[340533283,1729420252168,-500.0,0.00024931,2]
[340533284,1729420252178,-779.03,0.00024931,2]
[340533285,1729420252187,-779.03,0.00024931,2]
[340533286,1729420252197,-500.0,0.00024931,2]
[340533287,1729420252207,-779.03,0.00024931,2]
[340533288,1729420252216,-500.0,0.00024931,2]
[340533289,1729420252226,-779.03,0.00024931,2]
[340533290,1729420252236,-815.75,0.00024931,2]
[340533291,1729420252246,-500.0,0.00024931,2]
[340533292,1729420252256,-779.10410805,0.00024931,2]
[340533293,1729420252266,-815.75,0.00024931,2]
[340533294,1729420252276,-500.0,0.00024931,2]
[340533295,1729420252285,-1468.44,0.00024931,2]
[340533296,1729420252295,-815.75,0.00024931,2]
[340533297,1729420252304,-500.0,0.00024931,2]
[340533298,1729420252314,-1468.44,0.00024931,2]
[340533299,1729420252323,-500.0,0.00024931,2]
[340533300,1729420252333,-815.75,0.00024931,2]
[340533301,1729420252342,-1468.44,0.00024931,2]
[340533302,1729420252352,-500.0,0.00024931,2]
[340533303,1729420252361,-815.75,0.00024931,2]
[340533304,1729420252370,-1468.44,0.00024931,2]
[340533305,1729420252381,-500.0,0.00024931,2]
[340533306,1729420252390,-815.75,0.00024931,2]
[340533307,1729420252400,-1468.44,0.00024931,2]
[340533308,1729420252410,-500.0,0.00024931,2]
[340533309,1729420252419,-815.75,0.00024931,2]
[340533310,1729420252429,-1468.44,0.00024931,2]
[340533311,1729420252439,-500.0,0.00024931,2]
[340533312,1729420252449,-815.75,0.00024931,2]
[340533313,1729420252458,-1468.44,0.00024931,2]
[340533314,1729420252468,-500.0,0.00024931,2]
[340533315,1729420252478,-815.75,0.00024931,2]
[340533316,1729420252487,-1468.44,0.00024931,2]
[340533317,1729420252496,-500.0,0.00024931,2]
[340533318,1729420252506,-815.75,0.00024931,2]
[340533319,1729420252515,-225.13607866,0.00024931,2]
[340533320,1729420252525,-1468.44,0.00024931,2]
[340533321,1729420252534,-500.0,0.00024931,2]
[340533322,1729420252544,-815.75,0.00024931,2]
[340533323,1729420252553,-1468.44,0.00024931,2]
[340533324,1729420252563,-500.0,0.00024931,2]
[340533325,1729420252572,-815.75,0.00024931,2]
[340533326,1729420252583,-499.25779932,0.00024931,2]
[340533327,1729420252595,-1468.44,0.00024931,2]
[340533328,1729420252604,-500.0,0.00024931,2]
[340533329,1729420252614,-815.75,0.00024931,2]
[340533330,1729420252623,-1468.44,0.00024931,2]
[340533331,1729420252633,-500.0,0.00024931,2]
[340533332,1729420252643,-815.75,0.00024931,2]
[340533333,1729420252653,-500.0,0.00024931,2]
[340533334,1729420252662,-1468.44,0.00024931,2]
[340533335,1729420252672,-815.75,0.00024931,2]
[340533336,1729420252683,-500.0,0.00024931,2]
[340533337,1729420252692,-1468.44,0.00024931,2]
[340533338,1729420252702,-815.75,0.00024931,2]
[340533339,1729420252711,-500.0,0.00024931,2]
[340533340,1729420252721,-1468.44,0.00024931,2]
[340533341,1729420252730,-815.75,0.00024931,2]
[340533342,1729420252740,-500.0,0.00024931,2]
[340533343,1729420252749,-1468.44,0.00024931,2]
[340533344,1729420252759,-815.75,0.00024931,2]
[340533345,1729420252768,-1468.44,0.00024931,2]
[340533346,1729420252777,-500.0,0.00024931,2]
[340533347,1729420252787,-815.75,0.00024931,2]
[340533348,1729420252797,-500.0,0.00024931,2]
[340533349,1729420252806,-1468.44,0.00024931,2]
[340533350,1729420252816,-500.0,0.00024931,2]
[340533351,1729420252834,-815.75,0.00024931,2]
[340533352,1729420252843,-500.0,0.00024931,2]
[340533353,1729420252853,-1468.44,0.00024931,2]
[340533354,1729420252863,-267.20292022,0.00024931,2]
[340533355,1729420252872,-815.75,0.00024931,2]
[340533356,1729420252881,-500.0,0.00024931,2]
[340533357,1729420252891,-1468.44,0.00024931,2]
[340533358,1729420252900,-1829.72,0.00024931,2]
[340533359,1729420252909,-815.75,0.00024931,2]
[340533360,1729420252918,-500.0,0.00024931,2]
[340533361,1729420252927,-1468.44,0.00024931,2]
[340533362,1729420252937,-1829.72,0.00024931,2]
[340533363,1729420252946,-815.75,0.00024931,2]
[340533364,1729420252956,-500.0,0.00024931,2]
[340533365,1729420252966,-1468.44,0.00024931,2]
[340533366,1729420252976,-1829.72,0.00024931,2]
[340533367,1729420252987,-815.87380116,0.00024931,2]
[340533368,1729420252999,-500.0,0.00024931,2]
[340533369,1729420253076,-1468.44,0.00024931,2]